fUST/lending_fUST_20240709
["ID","MTS","AMOUNT","RATE_DAILY","PERIOD"]
[331534126,1720456286069,203.71877279,0.00014545,2]
[331534127,1720456286516,34942.66333554,0.00014545,2]
[331534128,1720456287890,5210.0005731,0.00014545,2]
[331534129,1720456289521,5503.49557759,0.00014545,2]
[331534130,1720456301171,154.77557542,0.00014999,2]
[331534137,1720456387202,1986.97335839,0.00014999,2]
[331534140,1720456473327,183.05479007,0.00014999,2]
[331534141,1720456475620,154.77557542,0.00014999,2]
[331534144,1720456480039,448.59520602,0.00014999,2]
[331534145,1720456480387,5210.0005731,0.00014999,2]
[331534146,1720456482342,154.77557542,0.00014999,2]
[331534147,1720456506850,269.1987068,0.00014999,7]
[331534148,1720456510672,877.46759542,0.00014999,2]
[331534149,1720456544216,782.74829199,0.00014999,2]
[331534151,1720456552800,1109.44863512,0.00015,2]
[331534152,1720456554892,155.00212175,0.00014999,2]
[331534153,1720456559239,272.49450803,0.00014999,2]
[331534154,1720456563672,155.41639174,0.00014999,2]
[331534155,1720456563840,325.52275049,0.00014999,2]
[331534156,1720456568963,193.66498558,0.00014999,2]
[331534162,1720456610861,156.83267593,0.00014999,2]
[331534163,1720456620398,3554.48816192,0.00014999,2]
[331534164,1720456622279,9118.49475123,0.000125,2]
[331534165,1720456629559,203.10934627,0.00014999,2]
[331534166,1720456633906,1748.05543041,0.000139,2]
[331534167,1720456638650,154.77557542,0.00014999,2]
[331534169,1720456642902,6769.28422248,0.00015,2]
[331534170,1720456645016,258.24743035,0.0001,2]
[331534172,1720456687164,154.77557542,0.00012121,2]
[331534173,1720456742142,154.77557542,0.00012121,2]
[331534174,1720456816157,175.97097206,0.00014692,2]
[331534175,1720456931590,1317.63399,0.00014917,2]
[331534177,1720457005594,493.55538733,0.00014917,2]
[331534178,1720457019424,13222.7805857,0.00014917,2]
[331534180,1720457044527,287.66587001,0.00014999,2]
[331534181,1720457096245,154.77557542,0.00014999,2]
[331534183,1720457148834,24900.0,0.00014914,2]
[331534185,1720457183364,531.33500682,0.00014999,2]
[331534187,1720457197486,293.39745102,0.00014999,2]
[331534188,1720457229116,242.79486718,0.00014999,2]
[331534189,1720457231249,155.50679135,0.00014999,2]
[331534193,1720457324794,1481.87885312,0.00015,2]
[331534194,1720457359566,155.48446991,0.00015,2]
[331534197,1720457402671,2252.49402184,0.00015,2]
[331534198,1720457406156,187.02576402,0.00014999,2]
[331534200,1720457409198,16218.68524789,0.00015,2]
[331534201,1720457419606,542.0,0.00025,120]
[331534202,1720457430410,287.42129962,0.00015,2]
[331534203,1720457430793,1986.97335839,0.00014999,2]
[331534219,1720457433221,-491.14974063,0.000151,2]
[331534221,1720457433231,-373.54534,0.00015336,2]
[331534223,1720457433242,-5521.10343145,0.00016144,2]
[331534225,1720457433253,-300.0,0.00016242,2]
[331534227,1720457433264,-300.0,0.00016242,2]
[331534229,1720457433273,-1000.0,0.00016243,10]
[331534231,1720457433283,-1000.0,0.00016243,10]
[331534233,1720457433293,-1000.0,0.00016244,10]
[331534235,1720457433303,-1000.0,0.00016244,10]
[331534237,1720457433313,-998.00399202,0.00016244,2]
[331534238,1720457433323,-1863.37089614,0.00016245,2]
[331534295,1720457437206,154.77557542,0.00015,2]
[331534313,1720457438015,-500.0,0.00016244,2]
[331534314,1720457438024,-202.93889691,0.00016244,2]
[331534315,1720457438034,-81369.34708196,0.00016245,2]
[331534316,1720457438043,-1000.0,0.00016252,10]
[331534317,1720457438052,-1000.0,0.00016253,10]
[331534318,1720457438061,-42242.98525417,0.00016254,2]
[331534319,1720457438070,-1000.0,0.00016254,10]
[331534320,1720457438080,-57236.72220273,0.00016254,2]
[331534321,1720457438089,-502.64621155,0.00016254,2]
[331534322,1720457438098,-216.26901233,0.00016254,2]
[331534323,1720457438107,-500.0,0.00016254,2]
[331534324,1720457438116,-500.0,0.00016254,2]
[331534325,1720457438124,-335.97967629,0.00016254,2]
[331534326,1720457438133,-500.0,0.00016254,2]
[331534327,1720457438142,-500.0,0.00016254,2]
[331534328,1720457438152,-500.0,0.00016254,2]
[331534329,1720457438162,-500.0,0.00016254,2]
[331534330,1720457438171,-276.46873722,0.00016254,2]
[331534331,1720457438258,-159.08706962,0.00016254,2]
[331534332,1720457438268,-500.0,0.00016254,2]
[331534333,1720457438278,-500.0,0.00016254,2]
[331534334,1720457438287,-500.0,0.00016254,2]
[331534335,1720457438297,-500.0,0.00016254,2]
[331534336,1720457438306,-500.0,0.00016254,2]
[331534337,1720457438316,-200.0,0.00016254,2]
[331534338,1720457438326,-427.43230234,0.00016254,2]
[331534339,1720457438335,-543.48235573,0.00016254,2]
[331534340,1720457438344,-500.0,0.00016254,2]
[331534341,1720457438353,-500.0,0.00016254,2]
[331534342,1720457438362,-500.0,0.00016254,2]
[331534343,1720457438371,-500.0,0.00016254,2]
[331534344,1720457438380,-500.0,0.00016254,2]
[331534345,1720457438389,-26951.50057954,0.00016255,2]
[331534346,1720457438398,-155.55654088,0.00016255,2]
[331534347,1720457438407,-155.35134645,0.00016255,2]
[331534348,1720457438416,-17253.08901251,0.00016255,2]
[331534349,1720457438425,-166.666666,0.00016438,2]
[331534350,1720457438434,-166.666666,0.00016823,2]
[331534351,1720457438443,-5521.10343144,0.00017033,2]
[331534352,1720457438452,-276.57925528,0.00017159,2]
[331534353,1720457438461,-166.666666,0.00017208,2]
[331534354,1720457438471,-166.666666,0.00017592,2]
[331534355,1720457438480,-270.84827056,0.000176,2]
[331534356,1720457438489,-420.0,0.00017754,2]
[331534357,1720457438499,-420.0,0.00017866,2]
[331534358,1720457438509,-83232.7179781,0.00017912,2]
[331534359,1720457438519,-1000.0,0.00017921,10]
[331534360,1720457438528,-5521.10343144,0.00017922,2]
[331534361,1720457438537,-166.666666,0.00017977,2]
[331534362,1720457438546,-191.07976262,0.00018,2]
[331534363,1720457438555,-1000.0,0.00018,4]
[331534364,1720457438564,-155.45001946,0.00018081,2]
[331534365,1720457438574,-155.51442144,0.0001818,2]
[331534366,1720457438584,-404.67602219,0.0001818,2]
[331534367,1720457438593,-257.57742118,0.0001818,2]
[331534368,1720457438603,-166.666666,0.00018362,2]
[331534369,1720457438612,-5521.10343144,0.00018811,2]
[331534370,1720457438621,-10721.1386496,0.000189,2]
[331534371,1720457438631,-197.26562919,0.00019,2]
[331534372,1720457438645,-299.62842539,0.00019,2]
[331534373,1720457438655,-1000.0,0.00019,5]
[331534374,1720457438664,-812.92138686,0.00019039,3]
[331534375,1720457438673,-250.0,0.00019041,2]
[331534376,1720457438683,-160.802042,0.00019178,2]
[331534377,1720457438692,-440.8214157,0.00019178,4]
[331534378,1720457438701,-587.0,0.00019406,2]
[331534379,1720457438711,-587.0,0.00019653,2]
[331534380,1720457438720,-5521.10343144,0.000197,2]
[331534381,1720457438731,-150.0,0.00019711,2]
[331534382,1720457438740,-151.0,0.0001978,2]
[331534383,1720457438750,-151.0,0.0001978,2]
[331534384,1720457438761,-151.0,0.0001978,2]
[331534385,1720457438770,-1000.0,0.00019789,10]
[331534386,1720457438779,-1000.0,0.00019789,10]
[331534387,1720457438789,-1000.0,0.00019789,10]
[331534388,1720457438798,-1000.0,0.00019789,10]
[331534389,1720457438807,-166465.435956,0.0001979,2]
[331534390,1720457438816,-1000.0,0.00019799,10]
[331534391,1720457438825,-1000.0,0.00019799,10]
[331534392,1720457438835,-100052.99756641,0.000198,2]
[331534393,1720457438844,-151.0,0.000198,2]
[331534394,1720457438854,-153.12537561,0.00019832,2]
[331534395,1720457438863,-182.47477149,0.00019832,2]
[331534396,1720457438872,-83232.7179781,0.00019869,2]
[331534397,1720457438881,-1000.0,0.00019879,10]
[331534398,1720457438890,-1000.0,0.00019879,10]
[331534399,1720457438899,-763.61573457,0.0002,2]
[331534400,1720457438908,-11111.35069313,0.0002,2]
[331534401,1720457438918,-579.51006506,0.0002,2]
[331534402,1720457438927,-1065.44743963,0.0002,2]
[331534403,1720457438937,-155.0246491,0.0002,2]
[331534404,1720457438946,-155.1865506,0.0002,2]
[331534405,1720457438955,-4175.08419199,0.0002,2]
[331534406,1720457438964,-151.0,0.0002,2]
[331534407,1720457438974,-151.0,0.0002,2]
[331534408,1720457438983,-191.40781,0.0002,2]
[331534409,1720457438993,-151.28821919,0.0002,2]
[331534410,1720457439003,-373.7955816,0.0002,2]
[331534411,1720457439012,-155.40087376,0.0002,2]
[331534412,1720457439021,-241.98105013,0.00020259,2]
[331534413,1720457439031,-1174.46827872,0.00021,2]
[331534414,1720457439040,-625.91499388,0.00021,2]
[331534415,1720457439049,-750.0,0.00021096,2]
[331534416,1720457439058,-169.348681,0.00021096,2]
[331534417,1720457439069,-222.78102464,0.000212,2]
[331534418,1720457439079,-823.0,0.00021212,2]
[331534419,1720457439088,-823.0,0.00021618,2]
[331534420,1720457439098,-162.374387,0.00021918,2]
[331534421,1720457439108,-376.04496946,0.00022,2]
[331534422,1720457439118,-11237.42818872,0.00022,2]
[331534423,1720457439127,-647.72341394,0.0002205,2]
[331534424,1720457439136,-620.29574969,0.0002205,2]
[331534425,1720457439146,-879.88946066,0.00022288,2]
[331534426,1720457439156,-1317.63399,0.00022375,2]
[331534427,1720457439165,-435.0,0.0002243,2]
[331534428,1720457439175,-200.0,0.00023,2]
[331534429,1720457439184,-621.3861707,0.00023153,2]
[331534430,1720457439194,-620.01478748,0.00023153,2]
[331534431,1720457439203,-1152.0,0.00023186,2]
[331534432,1720457439213,-1152.0,0.0002378,2]
[331534433,1720457439222,-10721.1386496,0.000239,2]
[331534434,1720457439231,-1000.0,0.00024,25]
[331534435,1720457439241,-86063.94449087,0.0002429,2]
[331534436,1720457439251,-160.702515,0.0002429,7]
[331534438,1720457439263,-151.0,0.0002429,7]
[331534439,1720457439272,-155.846958,0.0002429,7]
[331534440,1720457439283,-620.06930853,0.0002431,2]
[331534441,1720457439292,-620.00073937,0.0002431,2]
[331534442,1720457439302,-20206.67420898,0.000244,2]
[331534443,1720457439312,-200.0,0.00024658,15]
[331534444,1720457439321,-380.0,0.00024658,2]
[331534445,1720457439391,-10774.18578893,0.00024777,2]
[331534446,1720457439400,-243.09578666,0.00025,2]
[331534447,1720457439409,-310696.15965912,0.00025,2]
[331534448,1720457439419,-190.62597405,0.00025,2]
[331534449,1720457439428,-151.0,0.00025,7]
[331534450,1720457439437,-366.0,0.00025244,2]
[331534451,1720457439446,-1161.0,0.00025344,2]
[331534452,1720457439455,-150.0,0.00025436,2]
[331534453,1720457439465,-620.00003697,0.00025526,2]
[331534454,1720457439476,-4266.885901,0.00026,4]
[331534455,1720457439485,-1613.0,0.00026158,2]
[331534456,1720457439495,-151.0,0.000264,7]
[331534457,1720457439505,-1500.0,0.000264,5]
[331534458,1720457439514,-1500.0,0.000264,5]
[331534459,1720457439524,-1500.0,0.000264,5]
[331534460,1720457439533,-1500.0,0.000264,5]
[331534461,1720457439542,-1500.0,0.000264,5]
[331534462,1720457439551,-1500.0,0.000264,5]
[331534464,1720457439560,-1649.207085,0.000264,5]
[331534465,1720457439570,-12181.83594817,0.000264,2]
[331534466,1720457439580,-12181.83594816,0.000264,2]
[331534468,1720457439589,-12181.83594816,0.000264,2]
[331534470,1720457439599,-12181.83594816,0.000264,2]
[331534471,1720457439608,-4790.09276457,0.000267,2]
[331534472,1720457439617,-620.00000185,0.00026802,2]
[331534473,1720457439626,-163.9178479,0.00027123,2]
[331534474,1720457439635,-750.0,0.00027195,2]
[331534476,1720457439653,-160.802042,0.00027236,2]
[331534478,1720457439662,-756.13182,0.000273,2]
[331534480,1720457439672,-189.17055998,0.00027397,2]
[331534482,1720457439682,-428.141796,0.00027397,2]
[331534484,1720457439691,-2180.8178169,0.00027397,30]
[331534486,1720457439701,-500.0,0.00027397,2]
[331534487,1720457439710,-500.0,0.00027397,2]
[331534489,1720457439721,-500.0,0.00027397,2]
[331534491,1720457439732,-500.0,0.00027397,2]
[331534493,1720457439741,-500.0,0.00027397,2]
[331534495,1720457439750,-500.0,0.00027397,2]
[331534496,1720457439762,-500.0,0.00027397,2]
[331534498,1720457439771,-500.0,0.00027397,2]
[331534500,1720457439780,-500.0,0.00027397,2]
[331534501,1720457439790,-500.0,0.00027397,2]
[331534503,1720457439800,-500.0,0.00027397,2]
[331534505,1720457439809,-500.0,0.00027397,2]
[331534506,1720457439819,-500.0,0.00027397,2]
[331534507,1720457439828,-500.0,0.00027397,2]
[331534508,1720457439837,-500.0,0.00027397,2]
[331534509,1720457439847,-500.0,0.00027397,2]
[331534510,1720457439856,-641.26077187,0.00027397,2]
[331534511,1720457439865,-500.0,0.00027397,2]
[331534513,1720457439875,-500.0,0.00027397,2]
[331534515,1720457439884,-500.0,0.00027397,2]
[331534516,1720457439894,-151.0,0.00027397,7]
[331534518,1720457439904,-151.0,0.00027397,7]
[331534520,1720457439913,-152.606446,0.00027397,7]
[331534521,1720457439923,-151.632729,0.00027397,7]
[331534523,1720457439932,-151.0,0.00027397,7]
[331534525,1720457439942,-151.0,0.00027397,7]
[331534526,1720457439952,-162.983042,0.00027397,7]
[331534527,1720457439961,-151.0,0.00027397,7]
[331534528,1720457439971,-151.0,0.00027397,7]
[331534530,1720457439981,-151.0,0.00027397,7]
[331534532,1720457439990,-151.0,0.00027397,7]
[331534533,1720457440000,-151.0,0.00027397,7]
[331534534,1720457440011,-151.0,0.00027397,7]
[331534535,1720457440020,-268.723027,0.00027397,7]
[331534536,1720457440030,-268.723027,0.00027397,7]
[331534537,1720457440039,-268.723027,0.00027397,7]
[331534538,1720457440045,-268.723027,0.00027397,7]
[331534539,1720457440051,-268.723027,0.00027397,7]
[331534540,1720457440058,-268.723027,0.00027397,7]
[331534541,1720457440064,-268.723027,0.00027397,7]
[331534542,1720457440070,-268.723027,0.00027397,7]
[331534543,1720457440077,-268.723027,0.00027397,7]
[331534544,1720457440084,-268.723027,0.00027397,7]
[331534545,1720457440092,-151.0,0.00027397,7]
[331534546,1720457440101,-151.0,0.00027397,7]
[331534547,1720457440110,-151.0,0.00027397,7]
[331534548,1720457440119,-151.0,0.00027397,7]
[331534549,1720457440128,-151.0,0.00027397,7]
[331534550,1720457440138,-151.0,0.00027397,7]
[331534551,1720457440147,-151.0,0.00027397,7]
[331534552,1720457440156,-205.413105,0.00027397,7]
[331534553,1720457440165,-151.0,0.00027397,7]
[331534554,1720457440174,-151.0,0.00027397,7]
[331534555,1720457440183,-227.405288,0.00027397,7]
[331534556,1720457440192,-151.0,0.00027397,7]
[331534557,1720457440201,-151.0,0.00027397,7]
[331534558,1720457440211,-151.0,0.00027397,7]
[331534559,1720457440220,-151.0,0.00027397,7]
[331534560,1720457440229,-151.0,0.00027397,7]
[331534561,1720457440239,-151.0,0.00027397,7]
[331534562,1720457440248,-151.0,0.00027397,7]
[331534563,1720457440261,-151.0,0.00027397,7]
[331534564,1720457440270,-279.398626,0.00027397,7]
[331534565,1720457440279,-156.744755,0.00027397,7]
[331534566,1720457440291,-156.744755,0.00027397,7]
[331534567,1720457440300,-156.744755,0.00027397,7]
[331534568,1720457440310,-156.744755,0.00027397,7]
[331534569,1720457440319,-156.744755,0.00027397,7]
[331534570,1720457440328,-156.744755,0.00027397,7]
[331534571,1720457440337,-156.744755,0.00027397,7]
[331534572,1720457440346,-156.744755,0.00027397,7]
[331534573,1720457440409,-158.098734,0.00027397,7]
[331534574,1720457440419,-352.456612,0.00027397,7]
[331534575,1720457440428,-352.456612,0.00027397,7]
[331534576,1720457440437,-352.456612,0.00027397,7]
[331534577,1720457440446,-352.456612,0.00027397,7]
[331534578,1720457440455,-352.456612,0.00027397,7]
[331534579,1720457440464,-352.456612,0.00027397,7]
[331534580,1720457440473,-352.456612,0.00027397,7]
[331534581,1720457440482,-352.456612,0.00027397,7]
[331534582,1720457440491,-352.456612,0.00027397,7]
[331534583,1720457440500,-352.456612,0.00027397,7]
[331534584,1720457440511,-352.456612,0.00027397,7]
[331534585,1720457440520,-352.456612,0.00027397,7]
[331534586,1720457440530,-151.0,0.00027397,7]
[331534587,1720457440540,-151.0,0.00027397,7]
[331534588,1720457440550,-151.0,0.00027397,7]
[331534589,1720457440559,-151.0,0.00027397,2]
[331534590,1720457440569,-151.0,0.00027397,7]
[331534591,1720457440579,-151.0,0.00027397,2]
[331534592,1720457440588,-151.0,0.00027397,2]
[331534593,1720457440598,-259.09298,0.00027397,2]
[331534594,1720457440608,-151.0,0.00027397,7]
[331534595,1720457440618,-151.0,0.00027397,7]
[331534596,1720457440627,-151.0,0.00027397,7]
[331534597,1720457440637,-151.0,0.00027397,7]
[331534598,1720457440649,-151.0,0.00027397,7]
[331534599,1720457440659,-151.0,0.00027397,7]
[331534600,1720457440668,-151.0,0.00027397,7]
[331534601,1720457440678,-208.30150365,0.00028,2]
[331534602,1720457440687,-2258.0,0.00028774,2]
[331534603,1720457440696,-10721.1386496,0.000289,2]
[331534604,1720457440705,-1000.0,0.00029,29]
[331534605,1720457440714,-268.723027,0.00029793,7]
[331534606,1720457440726,-268.723027,0.00029793,7]
[331534607,1720457440735,-247.414595,0.000298,120]
[331534608,1720457440743,-151.0,0.00029823,7]
[331534609,1720457440753,-2119.55983052,0.00029979,2]
[331534610,1720457440767,-284.48602988,0.0003,3]
[331534611,1720457440776,-170.41373926,0.0003,4]
[331534612,1720457440785,-200.0,0.0003,2]
[331534613,1720457440794,-4000.0,0.0003,2]
[331534614,1720457440805,-179.0,0.0003,2]
[331534615,1720457440814,-169.348681,0.00030753,2]
[331534616,1720457440823,-150.0,0.00030761,2]
[331534617,1720457440832,-1405.0,0.00030761,2]
[331534618,1720457440841,-1563.0,0.00031651,2]
[331534619,1720457440850,-1736.827804,0.00032877,7]
[331534620,1720457440859,-1736.827804,0.00032877,7]
[331534621,1720457440867,-1736.827804,0.00032877,7]
[331534622,1720457440876,-1736.827804,0.00032877,7]
[331534623,1720457440885,-1736.827804,0.00032877,7]
[331534624,1720457440894,-1736.827804,0.00032877,7]
[331534625,1720457440903,-1736.827804,0.00032877,7]
[331534626,1720457440912,-1736.827804,0.00032877,7]
[331534627,1720457440921,-1736.827804,0.00032877,7]
[331534628,1720457440930,-1736.827804,0.00032877,7]
[331534629,1720457440939,-150.0,0.00032877,2]
[331534630,1720457440948,-200.35358391,0.00033,7]
[331534631,1720457440956,-500.20504173,0.00033,30]
[331534632,1720457440965,-179.0,0.00033,2]
[331534633,1720457440975,-179.0,0.00033,2]
[331534634,1720457440985,-303.20074885,0.00033208,4]
[331534635,1720457440994,-750.0,0.00033295,2]
[331534636,1720457441002,-151.0,0.00033333,7]
[331534637,1720457441013,-268.723027,0.00033333,7]
[331534638,1720457441022,-268.723027,0.00033333,7]
[331534639,1720457441031,-151.0,0.00033333,7]
[331534640,1720457441040,-151.0,0.00033333,7]
[331534641,1720457441049,-156.744755,0.00033333,7]
[331534642,1720457441057,-1736.827804,0.00033333,7]
[331534643,1720457441066,-156.744755,0.00033333,7]
[331534644,1720457441075,-1736.827804,0.00033333,7]
[331534645,1720457441083,-352.456612,0.00033333,7]
[331534646,1720457441092,-352.456612,0.00033333,7]
[331534647,1720457441101,-151.0,0.00033333,7]
[331534648,1720457441110,-151.0,0.00033333,7]
[331534649,1720457441119,-88722.45802687,0.00033333,2]
[331534650,1720457441128,-150.0,0.00033761,2]
[331534651,1720457441137,-1405.0,0.00033761,2]
[331534652,1720457441146,-150.811,0.00033797,2]
[331534653,1720457441155,-27036.31709746,0.00033807,2]
[331534654,1720457441164,-1000.0,0.00034,34]
[331534655,1720457441173,-151.07444044,0.00034797,2]
[331534656,1720457441182,-1000.0,0.000348,3]
[331534657,1720457441191,-1000.0,0.000348,3]
[331534658,1720457441200,-27383.49634254,0.000349,2]
[331534659,1720457441209,-1662.013679,0.00035,4]
[331534660,1720457441218,-1411.68404694,0.00035,30]
[331534661,1720457441227,-8441.11942699,0.00035,2]
[331534662,1720457441236,-189.51,0.00035242,2]
[331534663,1720457441244,-160.802042,0.00035294,2]
[331534664,1720457441253,-231.153362,0.00035616,7]
[331534665,1720457441265,-268.723027,0.00035616,7]
[331534666,1720457441273,-268.723027,0.00035616,7]
[331534667,1720457441282,-151.0,0.00035616,7]
[331534668,1720457441291,-151.0,0.00035616,7]
[331534669,1720457441351,-156.744755,0.00035616,7]
[331534670,1720457441360,-156.744755,0.00035616,7]
[331534671,1720457441368,-151.0,0.00035616,7]
[331534672,1720457441378,-56256.44,0.00035616,3]
[331534673,1720457441387,-1500.0,0.00036,2]
[331534674,1720457441396,-1500.0,0.00036,2]
[331534675,1720457441404,-1500.0,0.00036,2]
[331534676,1720457441413,-1383.27,0.00036,2]
[331534677,1720457441422,-179.0,0.00036,2]
[331534678,1720457441431,-179.0,0.00036,2]
[331534679,1720457441440,-179.0,0.00036,2]
[331534680,1720457441449,-257.7502026,0.0003624,2]
[331534681,1720457441459,-500.0,0.00036445,2]
[331534682,1720457441468,-150.0,0.00036761,2]
[331534683,1720457441477,-1405.0,0.00036761,2]
[331534684,1720457441487,-150.0,0.00036797,2]
[331534685,1720457441496,-583.55354263,0.00038,10]
[331534686,1720457441506,-525.6,0.000387,62]
[331534687,1720457441515,-666233.43653,0.00038793,14]
[331534688,1720457441524,-540.0,0.00038794,2]
[331534689,1720457441533,-530288.09439957,0.00038794,7]
[331534690,1720457441543,-268.723027,0.00038794,14]
[331534691,1720457441552,-268.723027,0.00038794,14]
[331534692,1720457441561,-151.0,0.00038794,14]
[331534693,1720457441569,-151.0,0.00038794,14]
[331534694,1720457441578,-156.744755,0.00038794,14]
[331534695,1720457441587,-1736.827804,0.00038794,14]
[331534696,1720457441596,-156.744755,0.00038794,14]
[331534697,1720457441605,-1736.827804,0.00038794,14]
[331534698,1720457441613,-352.456612,0.00038794,14]
[331534699,1720457441622,-352.456612,0.00038794,14]
[331534700,1720457441631,-226.51638059,0.00038794,14]
[331534701,1720457441642,-1000.0,0.00039,39]
[331534702,1720457441654,-179.0,0.00039,2]
[331534703,1720457441663,-179.0,0.00039,2]
[331534704,1720457441672,-179.0,0.00039,2]
[331534705,1720457441682,-250.53109566,0.000392,10]
[331534706,1720457441692,-750.0,0.00039394,2]
[331534707,1720457441701,-150.0,0.00039761,2]
[331534708,1720457441710,-1405.0,0.00039761,2]
[331534709,1720457441719,-153.0,0.00039781,2]
[331534710,1720457441731,-183.53241814,0.0003988,120]
[331534711,1720457441740,-63000.0,0.0004,15]
[331534712,1720457441749,-316.87705291,0.0004,120]
[331534713,1720457441759,-500.0,0.0004,2]
[331534714,1720457441767,-1560.15733291,0.0004,2]
[331534715,1720457441777,-202.00719974,0.0004,30]
[331534716,1720457441785,-1105.9792493,0.0004,15]
[331534717,1720457441794,-10000.0,0.0004,30]
[331534718,1720457441803,-5052.88867932,0.0004,7]
[331534719,1720457441811,-169.348681,0.00040411,2]
[331534720,1720457441821,-7000.1,0.0004094,14]
[331534721,1720457441830,-154.66746495,0.00040947,4]
[331534722,1720457441838,-6224.82634719,0.00041095,20]
[331534723,1720457441847,-153.0,0.00041096,2]
[331534724,1720457441856,-153.0,0.00041096,2]
[331534725,1720457441865,-153.0,0.00041096,2]
[331534726,1720457441874,-153.0,0.00041096,2]
[331534727,1720457441882,-179.1923836,0.00041096,2]
[331534728,1720457441891,-213.05421,0.00041096,14]
[331534729,1720457441900,-213.05421,0.00041096,14]
[331534730,1720457441909,-213.05421,0.00041096,14]
[331534731,1720457441917,-213.05421,0.00041096,14]
[331534732,1720457441926,-213.05421,0.00041096,14]
[331534733,1720457441935,-213.05421,0.00041096,14]
[331534734,1720457441944,-213.05421,0.00041096,14]
[331534735,1720457441953,-213.05421,0.00041096,14]
[331534736,1720457441962,-213.05421,0.00041096,14]
[331534737,1720457441970,-213.05421,0.00041096,14]
[331534738,1720457441979,-213.05421,0.00041096,14]
[331534739,1720457441988,-213.05421,0.00041096,14]
[331534740,1720457441997,-213.05421,0.00041096,14]
[331534741,1720457442007,-213.05421,0.00041096,14]
[331534742,1720457442016,-268.723027,0.00041096,14]
[331534743,1720457442024,-268.723035,0.00041096,14]
[331534744,1720457442033,-151.0,0.00041096,14]
[331534745,1720457442042,-151.0,0.00041096,14]
[331534746,1720457442050,-156.744755,0.00041096,14]
[331534747,1720457442059,-1736.827804,0.00041096,14]
[331534748,1720457442068,-156.744755,0.00041096,14]
[331534749,1720457442077,-1736.827804,0.00041096,14]
[331534750,1720457442086,-213.05421,0.00041096,14]
[331534751,1720457442094,-213.05421,0.00041096,14]
[331534752,1720457442104,-179.0,0.00042,2]
[331534753,1720457442113,-179.0,0.00042,2]
[331534754,1720457442122,-159.900965,0.00042009,2]
[331534755,1720457442131,-540.68999889,0.00042271,30]
[331534756,1720457442187,-352.456612,0.00042271,14]
[331534757,1720457442196,-352.456612,0.00042271,14]
[331534758,1720457442205,-153.0,0.00042361,2]
[331534759,1720457442214,-153.0,0.00042361,2]
[331534760,1720457442222,-200.0,0.00042466,2]
[331534761,1720457442231,-150.0,0.00042761,2]
[331534762,1720457442240,-1405.0,0.00042761,2]
[331534763,1720457442249,-157.57567203,0.00042769,30]
[331534764,1720457442257,-540.68999889,0.00042845,30]
[331534765,1720457442266,-182.24892994,0.00042848,30]
[331534766,1720457442275,-156.8926884,0.00042852,30]
[331534767,1720457442284,-2040.34238499,0.00043,120]
[331534768,1720457442293,-2312.996055,0.00043,30]
[331534769,1720457442302,-157.57567203,0.00043075,30]
[331534770,1720457442310,-160.802042,0.00043352,2]
[331534771,1720457442319,-540.68999889,0.00043414,30]
[331534772,1720457442328,-540.68999889,0.00043521,30]
[331534773,1720457442337,-540.68999889,0.00043688,30]
[331534774,1720457442346,-12482.86640336,0.0004369,2]
[331534776,1720457442355,-800.0,0.00043835,90]
[331534777,1720457442364,-800.0,0.00043835,90]
[331534778,1720457442372,-800.0,0.00043835,90]